fUSD/lending_fUSD_20240523
["ID","MTS","AMOUNT","RATE_DAILY","PERIOD"]
[327806006,1716495054331,-1024.24,0.00023835,2]
[327806007,1716495054341,-500.0,0.00023835,2]
[327806008,1716495054350,-500.0,0.00023835,2]
[327806009,1716495054360,-500.0,0.00023835,2]
[327806010,1716495054370,-621.39,0.00023835,2]
[327806011,1716495054380,-1482.24,0.00023835,2]
[327806012,1716495054390,-918.01,0.00023835,2]
[327806013,1716495054401,-500.0,0.00023835,2]
[327806014,1716495054410,-500.0,0.00023835,2]
[327806015,1716495054420,-503.1,0.00023835,2]
[327806016,1716495054429,-151.0,0.00023835,7]
[327806017,1716495054439,-500.0,0.00023835,2]
[327806018,1716495054449,-500.0,0.00023835,2]
[327806019,1716495054458,-689.78,0.00023835,2]
[327806020,1716495054468,-541.94,0.00023835,2]
[327806021,1716495054481,-980.66,0.00023835,2]
[327806022,1716495054490,-500.0,0.00023835,2]
[327806023,1716495054500,-500.0,0.00023835,2]
[327806024,1716495054510,-919.72,0.00023835,2]
[327806025,1716495054519,-609.39,0.00023835,2]
[327806026,1716495054529,-500.0,0.00023835,2]
[327806027,1716495054539,-500.0,0.00023835,2]
[327806028,1716495054549,-500.0,0.00023835,2]
[327806029,1716495054558,-500.0,0.00023835,2]
[327806030,1716495054568,-500.0,0.00023835,2]
[327806031,1716495054577,-826.38,0.00023835,2]
[327806032,1716495054587,-500.0,0.00023835,2]
[327806033,1716495054597,-1330.87,0.00023835,2]
[327806034,1716495054607,-500.0,0.00023835,2]
[327806035,1716495054616,-500.0,0.00023835,2]
[327806036,1716495054625,-1563.58,0.00023835,2]
[327806037,1716495054634,-500.0,0.00023835,2]
[327806038,1716495054644,-500.0,0.00023835,2]
[327806039,1716495054654,-500.0,0.00023835,2]
[327806040,1716495054664,-500.0,0.00023835,2]
[327806041,1716495054674,-1168.78,0.00023835,2]
[327806042,1716495054683,-500.0,0.00023835,2]
[327806043,1716495054693,-500.01,0.00023835,2]
[327806044,1716495054703,-500.0,0.00023835,2]
[327806045,1716495054712,-500.0,0.00023835,2]
[327806046,1716495054721,-500.0,0.00023835,2]
[327806047,1716495054733,-500.0,0.00023835,2]
[327806048,1716495054743,-250.05165023,0.00023835,2]
[327806049,1716495054752,-500.0,0.00023835,2]
[327806050,1716495054762,-271.004898,0.00023835,7]
[327806051,1716495054772,-271.004898,0.00023835,7]
[327806052,1716495054782,-667.07,0.00023835,2]
[327806053,1716495054793,-464.25,0.00023835,2]
[327806054,1716495054808,-5628.15,0.00023835,2]
[327806055,1716495054818,-7035.79,0.00023835,2]
[327806056,1716495054827,-7000.0,0.000239,8]
[327806057,1716495054837,-555.75,0.00023905,2]
[327806058,1716495054846,-1401.0,0.00023905,2]
[327806059,1716495054855,-1263.0,0.00023905,2]
[327806060,1716495054865,-1644.0,0.00023905,2]
[327806061,1716495054874,-1225.0,0.00023905,2]
[327806062,1716495054884,-439.0,0.00023905,2]
[327806063,1716495054893,-616.615,0.00023905,2]
[327806064,1716495054903,-2395.0,0.00023905,2]
[327806066,1716495054912,-445.0,0.00023905,2]
[327806067,1716495054922,-190.23,0.00023905,2]
[327806068,1716495054931,-218.065,0.00023905,2]
[327806069,1716495054941,-809.0,0.00023905,2]
[327806070,1716495054951,-215.0,0.00023905,2]
[327806071,1716495054960,-1649.0,0.00023905,2]
[327806072,1716495054969,-156.937,0.00023905,2]
[327806073,1716495054991,-1138.0,0.00023905,2]
[327806074,1716495055001,-3163.0,0.00023905,2]
[327806075,1716495055011,-31489.8321084,0.00023986,2]
[327806076,1716495055207,-65980.01840723,0.00023986,2]
[327806077,1716495055219,-274.61468466,0.00023997,2]
[327806078,1716495055234,-433.1400003,0.00024,2]
[327806079,1716495055244,-472.45726553,0.00024,2]
[327806080,1716495055254,-2000.0,0.00024,2]
[327806081,1716495055263,-2000.0,0.00024,2]
[327806082,1716495055273,-1020.0,0.00024,2]
[327806083,1716495055283,-14000.0,0.00024,2]
[327806084,1716495055294,-500.0,0.00024,2]
[327806085,1716495055305,-2850.7414665,0.00024,3]
[327806087,1716495055316,-11718.0,0.00024,5]
[327806088,1716495055325,-5121.83119169,0.00024009,2]
[327806089,1716495055335,-274.61468466,0.00024055,2]
[327806090,1716495055346,-154.09859632,0.0002406,2]
[327806091,1716495055356,-1035.97663664,0.000241,2]
[327806092,1716495055367,-500.0,0.00024105,2]
[327806093,1716495055377,-166.94450358,0.00024106,2]
[327806094,1716495055387,-269.36660307,0.00024107,2]
[327806095,1716495055397,-156.02574467,0.00024107,2]
[327806096,1716495055407,-156.71240192,0.00024108,2]
[327806097,1716495055417,-500.0,0.00024109,2]
[327806098,1716495055426,-500.0,0.00024109,2]
[327806099,1716495055436,-500.0,0.00024109,2]
[327806100,1716495055447,-500.0,0.00024109,2]
[327806101,1716495055457,-500.0,0.00024109,2]
[327806102,1716495055466,-500.0,0.00024109,2]
[327806103,1716495055478,-500.0,0.00024109,2]
[327806104,1716495055488,-500.0,0.00024109,2]
[327806105,1716495055498,-500.0,0.00024109,2]
[327806106,1716495055507,-500.0,0.00024109,2]
[327806107,1716495055516,-533.39,0.00024109,2]
[327806108,1716495055526,-500.0,0.00024109,2]
[327806109,1716495055535,-500.0,0.00024109,2]
[327806110,1716495055547,-500.0,0.00024109,2]
[327806111,1716495055557,-724.57,0.00024109,2]
[327806112,1716495055567,-500.0,0.00024109,2]
[327806113,1716495055578,-214.56711864,0.00024109,2]
[327806114,1716495055587,-500.0,0.00024109,2]
[327806115,1716495055598,-150.0,0.00024109,2]
[327806116,1716495055608,-151.0,0.00024109,7]
[327806117,1716495055617,-500.0,0.00024109,2]
[327806118,1716495055627,-500.0,0.00024109,2]
[327806119,1716495055637,-151.0,0.00024109,7]
[327806120,1716495055646,-294.963847,0.00024109,7]
[327806121,1716495055656,-294.963847,0.00024109,7]
[327806122,1716495055666,-570.85,0.00024109,2]
[327806123,1716495055675,-500.0,0.00024109,2]
[327806124,1716495055685,-515.0,0.00024109,2]
[327806125,1716495055695,-591.74,0.00024109,2]
[327806126,1716495055705,-2864.0,0.00024109,2]
[327806127,1716495055715,-943.12,0.00024109,2]
[327806128,1716495055728,-1280.8,0.00024109,2]
[327806129,1716495055737,-500.0,0.00024109,2]
[327806130,1716495055747,-706.51,0.00024109,2]
[327806131,1716495055756,-520.62,0.00024109,2]
[327806132,1716495055765,-739.35,0.00024109,2]
[327806133,1716495055775,-931.2,0.00024109,2]
[327806134,1716495055784,-500.0,0.00024109,2]
[327806135,1716495055795,-500.0,0.00024109,2]
[327806136,1716495055804,-500.0,0.00024109,2]
[327806137,1716495055814,-1024.24,0.00024109,2]
[327806138,1716495055823,-500.0,0.00024109,2]
[327806139,1716495055832,-500.0,0.00024109,2]
[327806140,1716495055842,-500.0,0.00024109,2]
[327806141,1716495055852,-621.39,0.00024109,2]
[327806142,1716495055862,-1482.24,0.00024109,2]
[327806143,1716495055871,-918.01,0.00024109,2]
[327806144,1716495055881,-500.0,0.00024109,2]
[327806145,1716495055890,-500.0,0.00024109,2]
[327806146,1716495055900,-503.1,0.00024109,2]
[327806147,1716495055910,-151.0,0.00024109,7]
[327806148,1716495055919,-500.0,0.00024109,2]
[327806149,1716495055929,-252.9,0.00024109,2]
[327806150,1716495055939,-689.78,0.00024109,2]
[327806151,1716495055949,-541.94,0.00024109,2]
[327806152,1716495055958,-980.66,0.00024109,2]
[327806153,1716495055968,-500.0,0.00024109,2]
[327806154,1716495055980,-500.0,0.00024109,2]
[327806155,1716495055990,-919.72,0.00024109,2]
[327806156,1716495056000,-609.39,0.00024109,2]
[327806157,1716495056010,-500.0,0.00024109,2]
[327806158,1716495056019,-500.0,0.00024109,2]
[327806159,1716495056029,-500.0,0.00024109,2]
[327806160,1716495056038,-500.0,0.00024109,2]
[327806161,1716495056048,-500.0,0.00024109,2]
[327806162,1716495056057,-826.38,0.00024109,2]
[327806163,1716495056067,-500.0,0.00024109,2]
[327806164,1716495056076,-1330.87,0.00024109,2]
[327806165,1716495056086,-500.0,0.00024109,2]
[327806166,1716495056096,-500.0,0.00024109,2]
[327806167,1716495056105,-1563.58,0.00024109,2]
[327806168,1716495056115,-500.0,0.00024109,2]
[327806169,1716495056125,-500.0,0.00024109,2]
[327806170,1716495056134,-500.0,0.00024109,2]
[327806171,1716495056144,-500.0,0.00024109,2]
[327806172,1716495056154,-1168.78,0.00024109,2]
[327806173,1716495056163,-500.0,0.00024109,2]
[327806174,1716495056173,-500.01,0.00024109,2]
[327806175,1716495056182,-500.0,0.00024109,2]
[327806176,1716495056192,-500.0,0.00024109,2]
[327806177,1716495056202,-500.0,0.00024109,2]
[327806178,1716495056213,-500.0,0.00024109,2]
[327806179,1716495056224,-500.0,0.00024109,2]
[327806180,1716495056237,-271.004898,0.00024109,7]
[327806181,1716495056247,-271.004889,0.00024109,7]
[327806182,1716495056257,-667.07,0.00024109,2]
[327806183,1716495056268,-5628.15,0.00024109,2]
[327806184,1716495056278,-7035.79,0.00024109,2]
[327806185,1716495056287,-200.0,0.00024111,2]
[327806186,1716495056297,-159.18081807,0.00024159,2]
[327806187,1716495056306,-150.0,0.000242,4]
[327806188,1716495056316,-3000.0,0.000242,2]
[327806189,1716495056325,-394.74474436,0.0002421,2]
[327806190,1716495056335,-153.40439104,0.00024226,2]
[327806191,1716495056344,-180.0,0.0002423,2]
[327806192,1716495056354,-600.0,0.00024246,2]
[327806193,1716495056364,-700.0,0.00024246,2]
[327806194,1716495056373,-200.0,0.00024278,2]
[327806195,1716495056382,-1000.0,0.00024278,2]
[327806196,1716495056392,-1524.0,0.000243,2]
[327806197,1716495056401,-163.58,0.00024357,2]
[327806198,1716495056410,-420.93,0.00024357,2]
[327806199,1716495056420,-274.61468466,0.00024374,2]
[327806200,1716495056429,-187760.34857246,0.00024383,15]
[327806201,1716495056442,-414.8755,0.00024383,15]
[327806202,1716495056492,-2006.10169195,0.00024383,15]
[327806203,1716495056505,-5769.20970001,0.00024383,15]
[327806204,1716495056543,-470.543086,0.00022465,7]
[327806205,1716495056597,-194.69188901,0.00022739,2]
[327806206,1716495056606,-610.52702385,0.00024383,15]
[327806207,1716495056624,-4471.22459994,0.00024383,15]
[327806208,1716495056701,-69195.40000001,0.00024383,15]
[327806209,1716495056774,-260.09023461,0.00022729,7]
[327806210,1716495056786,-210.45285139,0.00022729,7]
[327806211,1716495056796,-470.543086,0.00022889,7]
[327806212,1716495056805,-470.543086,0.00023087,7]
[327806213,1716495056815,-6176.69913389,0.00024383,15]
[327806214,1716495056827,-4043.23692891,0.00024383,15]
[327806215,1716495056838,-805.000004,0.00024383,15]
[327806216,1716495056849,-1359.97246651,0.00024383,15]
[327806217,1716495056860,-6558.94818661,0.00024383,15]
[327806218,1716495056872,-169518.44078915,0.00024383,15]
[327806219,1716495056881,-500.0,0.00024383,2]
[327806220,1716495056890,-500.0,0.00024383,2]
[327806221,1716495056900,-500.0,0.00024383,2]
[327806222,1716495056909,-500.0,0.00024383,2]
[327806223,1716495056919,-541.29660236,0.00024383,2]
[327806224,1716495056928,-500.0,0.00024383,2]
[327806225,1716495056937,-500.0,0.00024383,2]
[327806226,1716495056947,-500.0,0.00024383,2]
[327806227,1716495056955,-500.0,0.00024383,2]
[327806228,1716495056964,-500.0,0.00024383,2]
[327806229,1716495056973,-533.39,0.00024383,2]
[327806230,1716495056986,-500.0,0.00024383,2]
[327806231,1716495056995,-500.0,0.00024383,2]
[327806232,1716495057005,-500.0,0.00024383,2]
[327806233,1716495057014,-724.57,0.00024383,2]
[327806234,1716495057024,-526.44533685,0.00024383,2]
[327806235,1716495057033,-500.0,0.00024383,2]
[327806236,1716495057042,-150.0,0.00024383,2]
[327806237,1716495057051,-500.0,0.00024383,2]
[327806238,1716495057060,-500.0,0.00024383,2]
[327806239,1716495057070,-570.85,0.00024383,2]
[327806240,1716495057079,-500.0,0.00024383,2]
[327806241,1716495057088,-515.0,0.00024383,2]
[327806242,1716495057098,-2864.0,0.00024383,2]
[327806243,1716495057107,-943.12,0.00024383,2]
[327806244,1716495057116,-1280.8,0.00024383,2]
[327806245,1716495057125,-584.07792747,0.00024383,2]
[327806246,1716495057135,-706.51,0.00024383,2]
[327806247,1716495057144,-520.62,0.00024383,2]
[327806248,1716495057153,-739.35,0.00024383,2]
[327806249,1716495057163,-931.2,0.00024383,2]
[327806250,1716495057172,-500.0,0.00024383,2]
[327806251,1716495057182,-500.0,0.00024383,2]
[327806252,1716495057191,-500.0,0.00024383,2]
[327806253,1716495057201,-1024.24,0.00024383,2]
[327806254,1716495057210,-500.0,0.00024383,2]
[327806255,1716495057222,-500.0,0.00024383,2]
[327806256,1716495057236,-500.0,0.00024383,2]
[327806257,1716495057245,-621.39,0.00024383,2]
[327806258,1716495057255,-1482.24,0.00024383,2]
[327806260,1716495057266,-918.01,0.00024383,2]
[327806261,1716495057276,-500.0,0.00024383,2]
[327806262,1716495057286,-500.0,0.00024383,2]
[327806263,1716495057296,-503.1,0.00024383,2]
[327806264,1716495057306,-500.0,0.00024383,2]
[327806265,1716495057317,-689.78,0.00024383,2]
[327806266,1716495057327,-541.94,0.00024383,2]
[327806267,1716495057337,-980.66,0.00024383,2]
[327806268,1716495057347,-500.0,0.00024383,2]
[327806269,1716495057357,-637.48675334,0.00024383,2]
[327806270,1716495057367,-919.72,0.00024383,2]
[327806271,1716495057377,-609.39,0.00024383,2]
[327806272,1716495057387,-500.0,0.00024383,2]
[327806273,1716495057396,-500.0,0.00024383,2]
[327806274,1716495057405,-500.0,0.00024383,2]
[327806275,1716495057415,-500.0,0.00024383,2]
[327806276,1716495057424,-500.0,0.00024383,2]
[327806277,1716495057434,-826.38,0.00024383,2]
[327806278,1716495057446,-500.0,0.00024383,2]
[327806279,1716495057456,-1330.87,0.00024383,2]
[327806280,1716495057465,-500.0,0.00024383,2]
[327806281,1716495057474,-500.0,0.00024383,2]
[327806282,1716495057485,-1563.58,0.00024383,2]
[327806283,1716495057495,-500.0,0.00024383,2]
[327806284,1716495057505,-500.0,0.00024383,2]
[327806285,1716495057515,-500.0,0.00024383,2]
[327806286,1716495057524,-500.0,0.00024383,2]
[327806287,1716495057533,-1168.78,0.00024383,2]
[327806288,1716495057543,-500.0,0.00024383,2]
[327806289,1716495057552,-500.01,0.00024383,2]
[327806290,1716495057561,-500.0,0.00024383,2]
[327806291,1716495057570,-500.0,0.00024383,2]
[327806292,1716495057579,-500.0,0.00024383,2]
[327806293,1716495057588,-287.81343887,0.00024383,2]
[327806294,1716495057597,-500.0,0.00024383,2]
[327806295,1716495057607,-667.07,0.00024383,2]
[327806296,1716495057616,-5628.15,0.00024383,2]
[327806297,1716495057626,-7035.79,0.00024383,2]
[327806298,1716495057635,-151.94633522,0.00024391,2]
[327806299,1716495057645,-1248.22,0.000244,2]
[327806300,1716495057654,-1000.0,0.000244,2]
[327806301,1716495057663,-155.45184267,0.0002444,2]
[327806302,1716495057672,-500.0,0.00024452,2]
[327806303,1716495057681,-45227.31373901,0.00024458,2]
[327806304,1716495057690,-164.18,0.00024464,2]
[327806305,1716495057700,-18895.03851355,0.00024487,2]
[327806306,1716495057709,-151.0,0.00024487,7]
[327806307,1716495057718,-151.0,0.00024487,7]
[327806308,1716495057727,-486.0,0.000245,7]
[327806309,1716495057736,-1971.0,0.000245,2]
[327806310,1716495057745,-193.0,0.000245,7]
[327806311,1716495057753,-2000.0,0.000245,2]
[327806312,1716495057762,-1000.0,0.000245,4]
[327806313,1716495057771,-1000.0,0.000245,2]
[327806314,1716495057780,-151.0,0.00024538,7]
[327806315,1716495057789,-294.963847,0.00024538,7]
[327806316,1716495057798,-294.963847,0.00024538,7]
[327806317,1716495057806,-274.61468466,0.00024607,2]
[327806318,1716495057815,-500.0,0.00024657,2]
[327806319,1716495057825,-500.0,0.00024657,2]
[327806320,1716495057834,-445.43399788,0.00024657,2]
[327806321,1716495057843,-500.0,0.00024657,2]
[327806322,1716495057853,-500.0,0.00024657,2]
[327806323,1716495057862,-500.0,0.00024657,2]
[327806324,1716495057871,-500.0,0.00024657,2]
[327806325,1716495057880,-500.0,0.00024657,2]
[327806326,1716495057889,-500.0,0.00024657,2]
[327806327,1716495057898,-533.39,0.00024657,2]
[327806328,1716495057907,-500.0,0.00024657,2]
[327806329,1716495057916,-500.0,0.00024657,2]
[327806330,1716495057925,-183.73179515,0.00024657,2]
[327806331,1716495057934,-724.57,0.00024657,2]
[327806332,1716495057943,-500.0,0.00024657,2]
[327806333,1716495057952,-150.0,0.00024657,2]
[327806334,1716495057961,-500.0,0.00024657,2]
[327806335,1716495057970,-500.0,0.00024657,2]
[327806336,1716495057982,-570.85,0.00024657,2]
[327806337,1716495057991,-500.0,0.00024657,2]
[327806339,1716495058000,-1994.69613905,0.00024657,5]
[327806340,1716495058010,-515.0,0.00024657,2]
[327806341,1716495058019,-2864.0,0.00024657,2]
[327806342,1716495058028,-943.12,0.00024657,2]
[327806343,1716495058038,-1280.8,0.00024657,2]
[327806344,1716495058046,-706.51,0.00024657,2]
[327806345,1716495058055,-520.62,0.00024657,2]
[327806346,1716495058064,-739.35,0.00024657,2]
[327806347,1716495058073,-931.2,0.00024657,2]
[327806348,1716495058082,-500.0,0.00024657,2]
[327806349,1716495058092,-500.0,0.00024657,2]
[327806350,1716495058101,-331.63,0.00024657,2]
[327806351,1716495058110,-1024.24,0.00024657,2]
[327806352,1716495058119,-500.0,0.00024657,2]
[327806353,1716495058128,-500.0,0.00024657,2]
[327806354,1716495058137,-500.0,0.00024657,2]
[327806355,1716495058146,-621.39,0.00024657,2]
[327806356,1716495058156,-1482.24,0.00024657,2]
[327806357,1716495058165,-918.01,0.00024657,2]
[327806358,1716495058175,-500.0,0.00024657,2]
[327806359,1716495058184,-434.17,0.00024657,2]
[327806360,1716495058193,-503.1,0.00024657,2]
[327806362,1716495058202,-500.0,0.00024657,2]
[327806363,1716495058211,-689.78,0.00024657,2]
[327806364,1716495058228,-541.94,0.00024657,2]
[327806365,1716495058238,-980.66,0.00024657,2]
[327806366,1716495058247,-500.0,0.00024657,2]
[327806367,1716495058256,-919.72,0.00024657,2]
[327806368,1716495058266,-609.39,0.00024657,2]
[327806369,1716495058275,-500.0,0.00024657,2]
[327806370,1716495058285,-500.0,0.00024657,2]
[327806371,1716495058295,-500.0,0.00024657,2]
[327806372,1716495058304,-500.0,0.00024657,2]
[327806373,1716495058314,-500.0,0.00024657,2]
[327806374,1716495058322,-826.38,0.00024657,2]
[327806375,1716495058331,-500.0,0.00024657,2]
[327806376,1716495058341,-1330.87,0.00024657,2]
[327806377,1716495058350,-500.0,0.00024657,2]
[327806378,1716495058360,-500.0,0.00024657,2]
[327806379,1716495058369,-1563.58,0.00024657,2]
[327806380,1716495058377,-500.0,0.00024657,2]
[327806381,1716495058387,-500.0,0.00024657,2]
[327806382,1716495058396,-500.0,0.00024657,2]
[327806383,1716495058406,-500.0,0.00024657,2]
[327806384,1716495058415,-1168.78,0.00024657,2]
[327806385,1716495058425,-209.93797699,0.00024657,2]
[327806386,1716495058436,-500.01,0.00024657,2]
[327806387,1716495058446,-500.0,0.00024657,2]
[327806388,1716495058457,-500.0,0.00024657,2]
[327806389,1716495058467,-500.0,0.00024657,2]
[327806390,1716495058479,-667.07,0.00024657,2]
[327806391,1716495058489,-5628.15,0.00024657,2]
[327806392,1716495058499,-7035.79,0.00024657,2]
[327806393,1716495058509,-242.806547,0.00024658,7]
[327806394,1716495058519,-1937.0,0.000247,2]
[327806395,1716495058529,-150.0,0.000247,4]
[327806396,1716495058538,-274.61468466,0.00024728,2]
[327806397,1716495058547,-160.57597216,0.00024772,2]
[327806398,1716495058557,-700.0,0.00024794,2]
[327806399,1716495058566,-200.0,0.00024799,2]
[327806400,1716495058575,-1000.0,0.00024799,2]
[327806401,1716495058585,-200.0,0.00024799,2]
[327806402,1716495058594,-500.0,0.00024799,2]
[327806403,1716495058604,-8800.0,0.000248,9]
[327806404,1716495058613,-154.20664879,0.00024806,2]
[327806405,1716495058622,-151.94633522,0.0002487,2]
[327806406,1716495058631,-151.65055707,0.00024883,2]
[327806407,1716495058641,-1227.23,0.00024883,2]
[327806408,1716495058650,-155.0,0.000249,2]
[327806409,1716495058660,-3000.0,0.000249,2]
[327806410,1716495058669,-1700.0,0.000249,9]
[327806411,1716495058678,-500.0,0.00024931,2]
[327806412,1716495058687,-500.0,0.00024931,2]
[327806413,1716495058697,-500.0,0.00024931,2]
[327806414,1716495058706,-500.0,0.00024931,2]
[327806415,1716495058715,-500.0,0.00024931,2]
[327806416,1716495058725,-500.0,0.00024931,2]
[327806417,1716495058738,-500.0,0.00024931,2]
[327806418,1716495058747,-500.0,0.00024931,2]
[327806419,1716495058756,-533.39,0.00024931,2]
[327806420,1716495058765,-500.0,0.00024931,2]
[327806421,1716495058776,-500.0,0.00024931,2]
[327806422,1716495058785,-724.57,0.00024931,2]
[327806423,1716495058795,-324.12659704,0.00024931,2]
[327806424,1716495058804,-187.79010932,0.00024931,2]
[327806425,1716495058814,-500.0,0.00024931,2]
[327806426,1716495058824,-500.0,0.00024931,2]
[327806427,1716495058833,-570.85,0.00024931,2]
[327806428,1716495058842,-500.0,0.00024931,2]
[327806429,1716495058852,-515.0,0.00024931,2]
[327806430,1716495058861,-2864.0,0.00024931,2]
[327806431,1716495058871,-943.12,0.00024931,2]
[327806432,1716495058880,-1280.8,0.00024931,2]
[327806433,1716495058890,-706.51,0.00024931,2]
[327806434,1716495058899,-520.62,0.00024931,2]
[327806435,1716495058908,-739.35,0.00024931,2]
[327806436,1716495058918,-931.2,0.00024931,2]
[327806438,1716495058928,-500.0,0.00024931,2]
[327806439,1716495058937,-1024.24,0.00024931,2]
[327806440,1716495058946,-500.0,0.00024931,2]
[327806441,1716495058955,-500.0,0.00024931,2]
[327806442,1716495058964,-500.0,0.00024931,2]
[327806443,1716495058974,-621.39,0.00024931,2]
[327806444,1716495058986,-1482.24,0.00024931,2]
[327806445,1716495058996,-918.01,0.00024931,2]
[327806446,1716495059011,-500.0,0.00024931,2]
[327806447,1716495059026,-503.1,0.00024931,2]
[327806448,1716495059036,-500.0,0.00024931,2]
[327806449,1716495059046,-689.78,0.00024931,2]
[327806450,1716495059056,-980.66,0.00024931,2]
[327806451,1716495059066,-541.94,0.00024931,2]
[327806452,1716495059076,-500.0,0.00024931,2]
[327806453,1716495059086,-919.72,0.00024931,2]
[327806454,1716495059096,-609.39,0.00024931,2]
[327806455,1716495059106,-500.0,0.00024931,2]
[327806456,1716495059116,-500.0,0.00024931,2]
[327806457,1716495059126,-547.44658542,0.00024931,2]
[327806458,1716495059136,-500.0,0.00024931,2]
[327806459,1716495059145,-500.0,0.00024931,2]
[327806460,1716495059155,-826.38,0.00024931,2]
[327806461,1716495059164,-500.0,0.00024931,2]
[327806462,1716495059174,-1330.87,0.00024931,2]
[327806463,1716495059184,-500.0,0.00024931,2]
[327806464,1716495059193,-500.0,0.00024931,2]
[327806465,1716495059203,-1563.58,0.00024931,2]
[327806466,1716495059213,-500.0,0.00024931,2]
[327806467,1716495059223,-391.0399818,0.00024931,2]
[327806468,1716495059240,-500.0,0.00024931,2]
[327806469,1716495059251,-500.0,0.00024931,2]
[327806470,1716495059262,-1168.78,0.00024931,2]
[327806471,1716495059272,-500.01,0.00024931,2]
[327806472,1716495059282,-500.0,0.00024931,2]
[327806473,1716495059292,-500.0,0.00024931,2]
[327806474,1716495059303,-500.0,0.00024931,2]
[327806475,1716495059314,-667.07,0.00024931,2]
[327806476,1716495059324,-5628.15,0.00024931,2]
[327806477,1716495059334,-1615.22454676,0.00024931,2]
[327806478,1716495059353,-1662.525,0.00024931,2]
[327806479,1716495059366,-1673.21937097,0.00024931,2]
[327806480,1716495059379,-2084.82108227,0.00024931,2]
[327806481,1716495059389,-155.45184267,0.00024955,2]
[327806482,1716495059399,-229.62054587,0.00024956,2]
[327806483,1716495059409,-25044.8821463,0.00024966,2]
[327806484,1716495059427,-3714.2746694,0.00024966,2]
[327806485,1716495059443,-7629.20716571,0.00024966,2]
[327806486,1716495059457,-1889.08592415,0.00024966,2]
[327806487,1716495059502,-500.0,0.00021917,2]
[327806488,1716495059513,-470.543086,0.00023561,7]
[327806489,1716495059523,-2541.69647743,0.00024966,2]
[327806490,1716495059535,-417.62056368,0.00024966,2]
[327806491,1716495059742,-14609.24058878,0.00024966,2]
[327806492,1716495059780,-35739.50097698,0.00024966,2]
[327806493,1716495059792,-509.19508202,0.00024966,2]
[327806494,1716495059803,-353.97399145,0.00024966,2]
[327806495,1716495059813,-2235.42060093,0.00024983,2]
[327806496,1716495059824,-1636.75130585,0.00024983,2]
[327806497,1716495059836,-1758.65495462,0.00024983,2]
[327806498,1716495059847,-8378.77875726,0.00024983,2]
[327806499,1716495059858,-6526.80967084,0.00024983,2]
[327806500,1716495059868,-141.19032916,0.00024984,2]
[327806501,1716495059879,-33461.78319865,0.00024984,2]
[327806502,1716495059891,-56786.84083929,0.00024984,2]
[327806503,1716495059901,-175.33965795,0.00024994,2]
[327806504,1716495059911,-274.54009352,0.00024995,2]
[327806505,1716495059921,-288.48716002,0.00024995,2]
[327806506,1716495059930,-188.47815708,0.00024997,2]
[327806507,1716495059940,-258.75758651,0.00024997,2]
[327806508,1716495059950,-155.26311913,0.00024997,2]
[327806509,1716495059959,-207.55270017,0.00024997,2]
[327806510,1716495059969,-186.12897839,0.00024997,2]
[327806511,1716495059980,-155.79955669,0.00024997,2]